bitfinex/quotes_ETHUSD_20251017
["timestamp","ask_amount","ask_price","bid_price","bid_amount"]
[1760689104660,0.2268,3742.6,3741.4,2.6727533]
[1760689104900,0.2268,3742.6,3740.8,2.3616]
[1760689105119,1.6219,3742.8,3741.0,0.6336]
[1760689105334,1.147,3742.8,3740.3,0.3992]
[1760689105487,0.4749,3742.7,3740.6,2.67333176]
[1760689105686,0.6336,3742.5,3739.7,4.394803]
[1760689105885,0.6336,3742.5,3737.7,4.00095602]
[1760689105886,3.30575348,3742.3,3738.8,0.2664]
[1760689106187,0.6336,3742.1,3740.1,2.67366579]
[1760689106521,0.4749,3742.2,3738.8,0.2664]
[1760689106522,0.04659863,3741.8,3738.8,0.2664]
[1760689106684,2.3616,3741.2,3737.6,2.943422]
[1760689106888,2.3616,3741.2,3737.5,0.2664]
[1760689106889,0.6336,3741.0,3738.1,0.1336]
[1760689107079,0.7017,3740.9,3738.1,0.1336]
[1760689107388,0.6336,3740.3,3737.1,0.2664]
[1760689107615,3.14859521,3740.2,3737.1,0.2664]
[1760689107820,0.04662214,3739.9,3737.8,2.67532008]
[1760689108132,0.7017,3739.8,3737.7,2.67538083]
[1760689108281,2.0,3739.7,3737.7,2.67543073]
[1760689108621,2.0,3739.7,3737.2,2.90731]
[1760689108782,2.0,3739.7,3738.0,2.67522013]
[1760689108983,2.0,3739.7,3737.1,0.2664]
[1760689109215,2.0,3739.7,3737.2,2.46818]
[1760689109417,2.0,3739.7,3737.1,0.2664]
[1760689109418,0.4749,3739.6,3737.3,1.728]
[1760689109621,0.4749,3739.6,3737.3,2.67572846]
[1760689109780,0.4749,3739.6,3737.7,2.67538323]
[1760689109983,2.0,3739.7,3737.4,1.728]
[1760689110213,2.0,3739.7,3737.1,0.2664]
[1760689110214,0.4749,3739.5,3737.1,0.2664]
[1760689110417,0.4749,3739.5,3737.0,0.1328]
[1760689110913,0.4749,3739.5,3736.5,0.001]
[1760689110914,0.6336,3739.3,3736.5,0.001]
[1760689111321,1.728,3738.8,3736.5,0.001]
[1760689111491,0.4749,3739.2,3736.6,3.526003]
[1760689111686,0.4749,3739.2,3736.9,5.03756435]
[1760689111892,0.4749,3739.1,3736.6,0.2664]
[1760689112110,0.4749,3739.1,3736.8,0.6336]
[1760689112393,1.728,3738.9,3736.6,2.67619971]
[1760689112593,0.52153597,3738.8,3736.5,0.001]
[1760689112807,3.111,3738.7,3736.5,0.001]
[1760689113010,3.11,3738.7,3736.6,2.559881]
[1760689113214,3.11,3738.7,3736.6,2.67622972]
[1760689113215,0.4749,3738.6,3736.6,2.67622972]
[1760689113396,3.5829,3738.6,3737.5,2.67555579]
[1760689113597,3.5829,3738.6,3736.5,0.001]
[1760689113826,0.1336,3737.7,3737.0,2.8095353]
[1760689114028,0.1336,3737.7,3737.0,0.1336]
[1760689114189,0.1336,3738.7,3737.8,2.6753586]
[1760689114390,0.1336,3738.8,3737.6,0.1336]
[1760689114730,0.4749,3739.4,3738.0,0.1336]
[1760689114885,0.4749,3739.4,3737.6,2.67547395]
[1760689115088,0.4749,3739.4,3737.8,2.67530823]
[1760689115288,0.4749,3739.4,3737.5,2.67552657]
[1760689115591,0.2268,3739.8,3736.1,0.001]
[1760689115592,0.2268,3737.6,3736.1,0.001]
[1760689115805,0.86,3737.5,3736.1,0.001]
[1760689116004,0.86,3737.5,3736.1,0.1341]
[1760689116232,0.4749,3737.4,3736.1,0.001]
[1760689116416,0.86,3737.5,3736.2,0.1331]
[1760689116722,0.4749,3737.4,3736.1,0.001]
[1760689117522,0.2268,3737.6,3736.1,0.1341]
[1760689117725,1.131,3737.9,3736.1,1.8621]
[1760689117934,0.4749,3737.7,3736.1,2.81062233]
[1760689118227,0.4749,3737.7,3736.1,1.8621]
[1760689118396,1.131,3737.9,3736.1,0.1341]
[1760689118589,1.131,3737.9,3736.1,1.8621]
[1760689118823,1.131,3737.9,3736.1,0.1341]
[1760689119125,1.131,3737.9,3736.7,2.6760934]
[1760689119288,1.131,3737.9,3736.5,0.001]
[1760689119697,0.226,3738.1,3736.5,2.67727325]
[1760689119894,0.226,3738.1,3736.5,0.001]
[1760689120110,0.4749,3738.0,3736.5,0.001]
[1760689120511,0.04664923,3737.8,3736.5,0.001]
[1760689121048,3.113,3737.9,3736.6,2.67622065]
[1760689121252,0.4749,3737.7,3736.5,0.001]
[1760689121936,0.2268,3736.6,3736.5,0.001]
[1760689122250,0.2268,3736.6,3735.7,0.001]
[1760689122413,0.2268,3735.8,3733.5,0.2715]
[1760689122612,0.4749,3735.7,3733.5,0.003]
[1760689122813,0.4749,3735.7,3734.0,2.67808167]
[1760689123011,0.4749,3735.7,3734.1,2.67802085]
[1760689123209,0.4749,3735.7,3733.5,0.003]
[1760689123611,0.4749,3735.7,3733.8,2.67823012]
[1760689124056,0.4749,3735.7,3734.5,2.67773159]
[1760689124253,3.178,3735.6,3734.4,1.728]
[1760689124455,1.1085,3736.5,3734.2,2.67794976]
[1760689124630,0.4749,3736.4,3734.1,2.67799129]
[1760689124953,0.2268,3736.6,3733.5,0.003]
[1760689124954,0.1336,3734.9,3734.3,0.1336]
[1760689125354,0.4749,3734.8,3733.5,0.003]
[1760689125557,0.4749,3734.8,3733.6,2.67837463]
[1760689125755,0.4749,3734.8,3733.5,0.003]
[1760689126052,0.2268,3735.2,3733.8,0.001]
[1760689126264,0.2268,3735.2,3733.9,1.728]
[1760689126557,3.072,3735.3,3733.8,0.001]
[1760689126921,0.4749,3735.2,3733.8,0.001]
[1760689127769,0.4749,3735.2,3734.1,2.67801022]
[1760689128072,0.4749,3735.2,3734.2,2.67793947]
[1760689128371,0.2268,3736.0,3734.0,0.2705]
[1760689128372,3.172,3735.4,3734.0,0.2705]
[1760689128672,3.172,3735.4,3733.8,0.001]
[1760689128849,3.172,3735.4,3734.6,2.6775944]
[1760689129050,3.172,3735.4,3733.9,1.728]
[1760689129449,3.172,3735.4,3734.0,1.728]
[1760689129770,3.172,3735.4,3734.7,1.728]
[1760689129970,0.4749,3736.5,3734.4,2.67780634]
[1760689130161,0.2268,3736.6,3735.3,0.1336]
[1760689130472,0.4749,3736.5,3734.9,1.728]
[1760689130638,0.2268,3736.6,3733.5,0.2735]
[1760689130639,0.4749,3736.4,3733.5,0.2735]
[1760689130837,0.52156438,3736.4,3733.8,0.6346]
[1760689131060,0.4749,3736.3,3733.9,0.2705]
[1760689131277,0.4749,3736.3,3735.4,1.728]
[1760689131571,0.4749,3736.3,3735.3,2.67709879]
[1760689131572,0.4749,3736.3,3735.2,4.40522104]
[1760689131752,0.4749,3736.3,3734.5,0.1336]
[1760689131951,0.4749,3736.3,3735.0,2.67730482]
[1760689132156,0.4749,3736.3,3735.1,2.67730108]
[1760689132353,0.4749,3736.3,3733.4,0.001]
[1760689132354,0.2256,3735.2,3733.4,0.001]
[1760689132543,0.2256,3735.2,3733.9,2.67810803]
[1760689132746,0.4492,3735.1,3733.4,0.001]
[1760689133581,0.2256,3733.9,3733.4,0.001]
[1760689134076,0.2256,3734.4,3733.4,0.001]
[1760689134794,0.6748,3734.4,3733.4,0.001]
[1760689134998,3.35264845,3734.4,3733.4,0.001]
[1760689135182,0.6748,3734.4,3733.4,0.001]
[1760689135853,3.166,3734.3,3733.4,0.001]
[1760689136283,0.1336,3733.8,3733.4,0.001]
[1760689136586,0.4492,3734.2,3733.4,0.001]
[1760689136790,0.2256,3734.4,3733.4,0.001]
[1760689136791,3.163,3734.1,3733.4,0.001]
[1760689137094,0.04668854,3735.3,3734.5,2.6776659]
[1760689137390,0.4492,3735.6,3733.9,1.728]
[1760689137702,0.4492,3735.6,3733.5,0.003]
[1760689137703,3.163,3735.7,3734.6,4.40564992]
[1760689137852,3.163,3735.7,3734.8,1.728]
[1760689138054,3.163,3735.7,3734.0,26.80049555]
[1760689138055,3.163,3735.7,3735.2,1.728]
[1760689138253,3.163,3735.7,3734.7,1.728]
[1760689138474,0.2256,3737.6,3735.6,1.728]
[1760689138684,0.2256,3737.6,3734.9,0.6336]
[1760689138685,0.4492,3737.5,3735.0,2.67731539]
[1760689138887,0.4492,3737.5,3736.0,1.728]
[1760689139094,0.4492,3737.5,3735.1,2.3616]
[1760689139394,0.2256,3737.6,3735.1,2.3616]
[1760689139395,0.2256,3737.6,3735.7,2.67687448]
[1760689139604,0.2256,3737.5,3735.8,1.728]
[1760689139890,0.6748,3737.5,3735.5,1.728]
[1760689140057,0.6748,3737.5,3735.5,2.67701455]
[1760689140058,0.4492,3737.4,3735.5,2.67701455]
[1760689140253,0.4492,3737.4,3735.2,29.20616246]
[1760689140565,0.04665828,3737.2,3736.2,1.728]
[1760689140764,0.4492,3737.3,3735.0,0.04]
[1760689140978,0.2289,3736.3,3735.0,0.04]
[1760689141150,2.396,3736.2,3735.0,0.04]
[1760689141488,0.04665881,3737.2,3735.0,0.04]
[1760689141489,3.16,3736.8,3735.1,0.1336]
[1760689141656,0.4729,3736.7,3735.0,0.04]
[1760689142257,0.51956335,3736.7,3735.1,2.67730448]
[1760689142464,0.2256,3737.5,3735.0,0.04]
[1760689142465,0.6985,3737.5,3735.2,0.2715]
[1760689142694,1.212,3737.4,3735.4,1.728]
[1760689142894,2.67583862,3737.2,3735.0,0.04]
[1760689143100,0.4729,3737.1,3735.0,0.04]
[1760689143294,3.30955749,3737.0,3735.0,0.04]
[1760689143607,0.6328,3736.8,3735.0,0.04]
[1760689143783,0.4729,3736.7,3735.0,0.04]
[1760689143985,2.67652741,3736.2,3735.0,0.04]
[1760689144185,0.2289,3735.1,3735.0,0.04]
[1760689144415,0.2289,3735.1,3734.9,0.001]
[1760689144416,0.7018,3735.1,3734.9,0.001]
[1760689144617,0.4729,3735.0,3734.9,0.001]
[1760689144815,0.2289,3735.8,3734.9,0.001]
[1760689145925,0.4729,3735.7,3734.9,0.001]
[1760689146220,2.6770178,3735.5,3734.5,0.001]
[1760689146384,0.2289,3734.6,3734.5,0.001]
[1760689146585,5.1099,3734.6,3733.4,0.001]
[1760689146788,5.1099,3734.6,3730.2,4.00829547]
[1760689146789,0.3625,3733.6,3730.2,0.3135]
[1760689147089,2.6785378,3733.4,3731.0,2.68024566]
[1760689147284,3.6279,3733.3,3731.1,0.1406]
[1760689147717,3.6279,3733.3,3731.2,0.3185]
[1760689147890,3.6279,3733.3,3731.9,2.67958661]
[1760689148091,3.6279,3733.3,3732.0,1.728]
[1760689148389,3.155,3733.3,3732.2,2.67938408]
[1760689148618,0.4729,3733.2,3731.4,2.67995926]
[1760689148791,0.4729,3733.2,3731.3,0.6336]
[1760689148998,0.4729,3733.2,3732.0,2.67947115]
[1760689149294,0.4729,3733.2,3730.8,0.3185]
[1760689149822,3.15,3733.1,3732.1,2.67945384]
[1760689150118,3.15,3733.1,3731.9,2.67957243]
[1760689150323,3.15,3733.1,3731.7,2.67972521]
[1760689150507,0.4729,3733.0,3731.6,1.728]
[1760689150708,0.2289,3732.9,3731.6,1.728]
[1760689150905,0.2289,3732.9,3731.0,0.3185]
[1760689151110,3.15,3733.1,3731.4,0.6336]
[1760689151330,3.15,3733.1,3732.1,1.728]
[1760689151491,3.15,3733.1,3731.6,1.728]
[1760689151822,3.146,3733.1,3731.2,0.3185]
[1760689152022,3.146,3733.1,3732.3,2.67928051]
[1760689152213,3.146,3733.1,3732.0,1.728]
[1760689152524,3.146,3733.1,3731.2,0.3185]
[1760689152889,3.146,3733.1,3732.5,2.67911708]
[1760689153225,3.146,3733.1,3731.8,1.728]
[1760689153427,0.42028016,3734.8,3731.8,1.728]
[1760689153428,0.4729,3735.4,3732.9,1.728]
[1760689153602,0.27559005,3735.1,3733.1,1.728]
[1760689153800,0.27559005,3735.1,3732.4,26.52899555]
[1760689153801,0.4729,3735.0,3733.6,2.67837384]
[1760689154003,0.2289,3733.7,3731.6,26.52899555]
[1760689154299,3.6149,3733.6,3731.1,0.1406]
[1760689154498,3.6149,3733.6,3732.4,2.67918904]
[1760689154687,3.6149,3733.6,3732.6,2.67906712]
[1760689154887,3.6149,3733.6,3732.0,1.728]
[1760689155088,3.6149,3733.6,3731.2,0.3185]
[1760689155295,3.6149,3733.6,3731.7,2.67967356]
[1760689155495,0.4729,3733.5,3731.9,2.67954583]
[1760689156106,3.142,3733.6,3731.7,2.67967486]
[1760689156329,0.4729,3733.4,3731.1,0.1406]
[1760689156700,0.4729,3733.4,3731.5,2.67986379]
[1760689156998,2.67915018,3732.6,3730.0,2.68096514]
[1760689157339,0.1336,3731.0,3730.3,0.1336]
[1760689157978,0.1336,3731.0,3729.9,0.1779]
[1760689157979,0.1336,3730.7,3730.1,0.1336]
[1760689158183,0.04672082,3732.0,3731.5,2.6798452]
[1760689158335,3.137,3732.2,3730.4,2.68065635]
[1760689158538,3.137,3732.2,3730.4,1.728]
[1760689158984,3.137,3732.2,3732.1,2.6794566]
[1760689159197,3.135,3733.2,3732.1,0.1406]
[1760689159400,3.135,3733.2,3732.4,1.728]
[1760689159606,0.42022364,3734.5,3732.2,0.3185]
[1760689159764,0.42022364,3734.5,3732.7,1.728]
[1760689159965,1.102,3734.9,3732.8,2.0465]
[1760689160167,1.102,3734.9,3733.1,1.728]
[1760689160475,0.4729,3734.8,3732.8,3.4525]
[1760689160786,1.102,3734.9,3732.9,1.728]
[1760689160949,1.102,3734.9,3732.1,0.1406]
[1760689160950,0.4729,3734.7,3732.5,2.67911298]
[1760689161150,1.102,3734.9,3732.1,0.1406]
[1760689161151,0.04669473,3734.5,3732.1,0.1406]
[1760689161359,2.6772357,3735.2,3732.1,0.1406]
[1760689161360,0.64909902,3736.1,3733.5,26.52899555]
[1760689161591,0.64909902,3736.1,3733.9,2.67816492]
[1760689161766,0.04668565,3735.5,3733.9,1.728]
[1760689161997,0.429,3735.4,3732.7,0.3185]
[1760689162155,0.04667647,3735.2,3733.4,2.67846129]
[1760689162355,0.002,3734.6,3732.8,2.67895413]
[1760689162683,3.153,3734.6,3733.0,2.6788106]
[1760689162996,3.153,3734.6,3734.1,2.677979]
[1760689163201,3.153,3734.6,3733.0,1.728]
[1760689163370,0.002,3734.6,3733.6,26.52899555]
[1760689163560,0.002,3734.6,3734.5,2.85563463]
[1760689163762,0.002,3734.6,3734.5,4.58363463]
[1760689163974,0.002,3734.6,3734.5,4.90213463]
[1760689164163,0.002,3735.4,3735.3,2.67716113]
[1760689164364,0.002,3735.4,3735.3,7.62743613]
[1760689164607,0.002,3735.4,3735.3,4.71966113]
[1760689165078,0.002,3735.4,3734.8,26.68032697]
[1760689165079,0.002,3735.4,3734.5,0.1779]
[1760689165264,0.002,3735.4,3734.7,1.728]
[1760689165459,0.002,3735.4,3734.5,0.1779]
[1760689165664,0.002,3735.4,3734.8,2.67751936]
[1760689165964,0.002,3735.4,3734.9,2.67737942]
[1760689166198,0.002,3735.4,3734.5,0.1779]
[1760689166410,0.002,3735.4,3735.1,2.67728898]
[1760689166709,0.002,3735.4,3735.3,2.67716113]
[1760689167359,0.002,3735.4,3734.5,0.1779]
[1760689167676,0.429,3735.3,3733.9,1.728]
[1760689167876,0.429,3735.3,3733.7,0.1739]
[1760689168187,0.1336,3734.8,3734.2,0.1336]
[1760689168573,3.137,3735.1,3733.7,0.1739]
[1760689168872,3.137,3735.1,3733.2,0.1739]
[1760689169080,0.429,3735.0,3732.4,2.6791838]
[1760689169277,3.137,3735.1,3730.0,0.05]
[1760689169278,0.6608,3734.9,3732.3,2.860596]
[1760689169595,0.429,3734.8,3732.2,0.3145]
[1760689169904,0.429,3734.8,3732.3,2.67931302]
[1760689170061,0.2318,3734.9,3732.2,0.3145]
[1760689170062,0.429,3734.7,3732.2,0.3145]
[1760689170406,0.47568791,3734.7,3732.2,0.3145]
[1760689170703,3.132,3734.6,3732.2,0.3145]
[1760689170865,3.132,3734.6,3732.7,2.67895485]
[1760689171196,0.429,3734.5,3732.2,0.3145]
[1760689171409,0.429,3734.5,3731.6,0.1406]
[1760689171560,3.31145745,3734.4,3731.6,0.1406]
[1760689171888,0.429,3734.3,3731.2,0.1406]
[1760689172064,0.429,3734.3,3730.5,0.001]
[1760689172065,0.429,3734.3,3731.1,2.6801213]
[1760689172363,1.728,3734.5,3730.5,0.001]
[1760689172364,2.67865115,3733.3,3730.9,2.68024702]
[1760689172565,0.04670158,3733.8,3730.5,0.001]
[1760689172566,3.7888,3733.2,3730.5,0.001]
[1760689172900,1.728,3732.9,3730.5,0.001]
[1760689173087,1.728,3732.5,3730.5,0.001]
[1760689173287,2.67941414,3732.2,3730.5,0.001]
[1760689173608,0.04672535,3732.1,3730.5,0.001]
[1760689173775,3.60172535,3732.1,3730.5,0.001]
[1760689174166,3.555,3732.1,3730.5,0.001]
[1760689174766,3.126,3732.1,3730.5,1.729]
[1760689174963,3.126,3732.1,3731.0,2.68019987]
[1760689175205,3.126,3732.1,3730.5,0.001]
[1760689175770,3.126,3732.1,3730.5,1.729]
[1760689175999,3.126,3732.1,3731.4,2.6799413]
[1760689176203,3.126,3732.1,3732.0,2.6795284]
[1760689176364,0.429,3732.8,3732.0,2.6795284]
[1760689176703,0.84932384,3733.7,3731.9,0.6336]
[1760689176889,3.121,3734.2,3733.3,2.67854203]
[1760689177096,3.121,3734.2,3733.4,2.67846049]
[1760689177287,3.121,3734.2,3733.7,2.67829757]
[1760689177488,0.429,3734.1,3732.5,0.4884]
[1760689177692,3.121,3734.2,3732.7,1.728]
[1760689177989,3.121,3734.2,3732.5,0.1739]
[1760689178189,3.121,3734.2,3732.5,1.9019]
[1760689178401,3.121,3734.2,3733.2,2.6786494]
[1760689178618,3.121,3734.2,3732.7,5.816971]
[1760689178783,3.121,3734.2,3732.4,27.16259555]
[1760689178784,3.121,3734.2,3732.8,1.728]
[1760689178987,0.429,3734.1,3732.8,2.67888888]
[1760689179309,0.429,3734.1,3731.8,1.728]
[1760689179310,0.429,3734.1,3732.0,1.728]
[1760689179627,3.121,3734.2,3732.1,2.6794566]
[1760689179798,0.429,3734.0,3732.9,2.67887761]
[1760689179974,0.429,3734.0,3732.9,2.67884429]
[1760689180305,3.121,3734.2,3732.5,1.728]
[1760689180508,0.429,3734.1,3732.3,0.3145]
[1760689180683,0.429,3734.1,3731.3,2.68003108]
[1760689180880,0.429,3734.0,3731.1,2.68016447]
[1760689181080,0.429,3734.0,3732.0,0.001]
[1760689181081,0.04669967,3733.8,3732.0,0.001]
[1760689181279,2.7249508,3733.8,3732.0,0.001]
[1760689181483,2.67853392,3733.4,3732.0,0.001]
[1760689181682,0.429,3733.7,3732.0,0.001]
[1760689181983,0.429,3733.3,3732.0,0.001]
[1760689182190,4.278128,3733.2,3731.6,0.001]
[1760689182399,0.2318,3731.7,3731.2,0.001]
[1760689182704,3.113,3731.6,3731.2,0.001]
[1760689183008,6.22181775,3731.6,3730.1,0.001]
[1760689183223,0.2318,3730.6,3730.1,0.001]
[1760689183504,3.113,3730.5,3730.1,0.001]
[1760689183671,3.542,3730.5,3730.1,0.001]
[1760689183885,0.42053057,3731.6,3730.1,0.001]
[1760689183886,0.2318,3731.2,3730.1,0.001]
[1760689184084,3.111,3731.1,3730.4,2.68060628]
[1760689184288,3.111,3731.1,3730.1,0.001]
[1760689184631,3.111,3731.1,3730.2,2.68076211]
[1760689184837,3.111,3731.1,3730.1,0.001]
[1760689185015,0.42047818,3732.2,3730.1,0.001]
[1760689185016,0.2318,3732.6,3731.6,2.67981301]
[1760689185340,3.11,3732.5,3731.1,0.1406]
[1760689185494,3.11,3732.5,3730.6,0.1406]
[1760689185842,0.42033336,3733.6,3731.6,26.52899555]
[1760689185995,0.42033336,3733.6,3732.2,2.67938481]
[1760689186195,0.4757093,3734.2,3733.5,2.67845185]
[1760689186395,3.109,3734.4,3733.8,2.67816594]
[1760689186623,3.109,3734.4,3733.2,0.1779]
[1760689186796,3.109,3734.4,3733.4,2.67850009]
[1760689186996,3.109,3734.4,3733.1,2.67873575]
[1760689186997,3.538,3734.4,3733.2,2.67859643]
[1760689187327,3.538,3734.4,3732.1,0.4964]
[1760689187328,0.429,3734.3,3732.1,0.4964]
[1760689187643,0.429,3734.3,3731.6,1.728]
[1760689187821,0.429,3734.2,3731.6,1.728]
[1760689188020,0.429,3734.2,3730.6,0.1406]
[1760689188021,1.0626,3734.1,3731.8,2.67966052]
[1760689188210,0.429,3734.0,3730.7,0.3185]
[1760689188412,0.46696312,3733.6,3731.5,26.52899555]
[1760689188611,0.1336,3733.0,3732.3,0.1336]
[1760689188792,0.1336,3733.0,3732.3,2.81290725]
[1760689188996,0.1336,3733.0,3732.3,0.1336]
[1760689189201,1.839,3733.2,3731.6,1.728]
[1760689189402,0.1336,3732.7,3732.1,0.1336]
[1760689189737,0.6608,3732.8,3730.7,5.24993311]
[1760689189907,0.6608,3732.8,3730.6,0.1406]
[1760689190105,0.6608,3732.8,3730.8,2.68034499]
[1760689190402,3.534,3732.7,3730.6,0.1406]
[1760689190604,3.104,3732.6,3730.6,0.1406]
[1760689190815,0.429,3732.7,3730.9,2.68025386]
[1760689191021,3.103,3732.6,3730.9,2.68025386]
[1760689191220,0.4282,3732.7,3731.0,2.68023379]
[1760689191502,5.3736,3732.7,3730.1,0.001]
[1760689191703,1.728,3732.6,3730.1,0.001]
[1760689191904,0.04671902,3732.3,3730.1,0.001]
[1760689192117,0.04671902,3732.3,3730.3,2.68069293]
[1760689192442,0.04671902,3732.3,3730.1,2.681881]
[1760689192443,1.728,3731.9,3730.1,0.001]
[1760689192765,0.2202,3731.8,3730.1,0.001]
[1760689192937,3.1,3732.4,3730.3,4.900604]
[1760689193103,3.1,3732.3,3730.2,0.4607]
[1760689193304,3.1,3732.3,3730.3,2.68074953]
[1760689193628,0.4423,3732.2,3730.1,0.001]
[1760689193938,0.4423,3732.2,3730.6,2.68047352]
[1760689194142,0.4423,3732.2,3730.6,2.68052196]
[1760689194313,0.4423,3732.2,3730.2,0.1414]
[1760689194314,0.4423,3732.2,3730.5,2.68059767]
[1760689194515,0.2202,3730.6,3730.1,0.001]
[1760689194714,3.1,3730.6,3730.1,0.001]
[1760689195218,0.4423,3730.5,3730.1,0.001]
[1760689195542,3.1,3730.6,3730.1,2.68188975]
[1760689195743,3.1,3730.6,3730.1,0.001]
[1760689196834,0.4423,3730.5,3730.1,0.001]
[1760689197014,3.1,3730.6,3730.1,0.001]
[1760689197544,3.1,3730.6,3730.1,2.68188259]
[1760689197708,0.40563083,3731.2,3730.2,2.68081949]
[1760689197909,0.1172,3731.6,3730.1,0.001]
[1760689198109,0.1172,3731.6,3730.1,2.68189131]
[1760689198310,0.1172,3731.6,3730.1,0.001]
[1760689198509,0.16392756,3732.0,3730.2,0.2153]
[1760689198744,0.04672756,3732.0,3730.3,0.4672]
[1760689198968,0.106,3732.0,3731.2,2.68006942]
[1760689199253,0.106,3732.0,3731.1,0.2153]
[1760689199451,0.1172,3731.9,3730.1,0.001]
[1760689199626,0.002,3732.7,3730.9,2.13919]
[1760689199832,0.002,3732.7,3731.2,2.68010291]
[1760689200035,0.002,3732.7,3731.3,2.68003108]
[1760689200231,0.002,3732.7,3731.3,3.14720792]
[1760689200454,0.002,3732.7,3731.3,0.4672]
[1760689200618,0.002,3732.7,3732.0,2.67947806]
[1760689200954,0.002,3732.7,3731.1,0.2153]
[1760689200955,1.411,3732.6,3731.1,0.2153]
[1760689201150,1.411,3732.6,3731.2,2.68010291]
[1760689201361,1.411,3732.6,3731.3,0.4524]
[1760689201533,0.002,3732.7,3731.5,1.728]
[1760689201852,0.002,3732.7,3732.5,2.9111487]
[1760689202027,0.002,3732.7,3731.4,3.13235926]
[1760689202229,0.002,3732.7,3732.2,0.232]
[1760689202430,0.002,3732.7,3731.2,0.4524]
[1760689202634,0.0285,3732.6,3730.6,0.4524]
[1760689202858,0.0285,3732.6,3730.1,0.001]
[1760689202859,0.0285,3732.5,3730.1,0.001]
[1760689203063,0.002,3732.7,3730.1,0.001]
[1760689203064,0.04671526,3732.2,3730.1,0.001]
[1760689203360,0.6336,3731.9,3730.1,0.001]
[1760689203518,0.6336,3731.3,3730.1,0.001]
[1760689203718,0.2066,3731.2,3730.1,0.001]
[1760689204062,1.728,3731.0,3730.1,0.001]
[1760689204658,0.0308,3730.9,3730.1,0.001]
[1760689204841,0.6336,3730.8,3730.1,0.001]
[1760689205044,0.42062783,3731.0,3730.1,0.001]
[1760689205357,2.357,3730.9,3730.1,0.001]
[1760689205656,0.6336,3730.5,3730.1,0.001]
[1760689205816,2.3616,3730.3,3730.1,0.001]
[1760689206020,2.3616,3730.1,3729.3,0.001]
[1760689206355,0.6336,3729.2,3727.1,0.6]
[1760689206560,0.0327,3729.1,3727.1,0.832]
[1760689206760,0.2211,3729.8,3727.3,0.4524]
[1760689206969,1.495,3729.0,3727.4,0.00902004]
[1760689207258,0.2211,3729.8,3728.2,2.91425488]
[1760689207461,3.1,3729.7,3728.8,2.68177836]
[1760689207637,3.1,3729.7,3728.4,3.13449888]
[1760689207958,3.1,3729.7,3727.7,0.4524]
[1760689207959,3.099,3729.6,3727.7,0.4524]
[1760689208272,0.0364,3731.4,3728.5,2.201932]
[1760689208421,0.04674405,3731.4,3729.5,0.232]
[1760689208623,0.002,3732.7,3730.7,2.68044203]
[1760689208830,3.103,3732.6,3730.8,0.0268039]
[1760689209032,3.103,3732.6,3729.5,0.232]
[1760689209033,0.0467253,3732.5,3730.9,0.71120318]
[1760689209263,3.103,3732.6,3732.2,2.6793179]
[1760689209449,3.103,3732.6,3730.9,2.93910583]
[1760689209450,3.103,3732.6,3731.3,0.4524]
[1760689209771,3.103,3732.6,3731.7,0.1336]
[1760689209772,0.1336,3732.4,3731.7,0.1336]
[1760689209974,3.103,3732.6,3731.2,0.1336]
[1760689209975,0.1336,3731.8,3731.2,0.1336]
[1760689210122,3.103,3732.6,3730.9,0.232]
[1760689210322,3.103,3732.6,3731.2,2.68010291]
[1760689210527,3.103,3732.6,3730.9,0.25267867]
[1760689210528,3.103,3732.6,3732.4,2.67918065]
[1760689210726,0.002,3732.7,3732.5,0.4524]
[1760689211030,0.002,3732.7,3731.5,0.4524]
[1760689211240,0.148,3732.6,3729.0,0.232]
[1760689211443,0.1813,3732.6,3730.7,0.4524]
[1760689211823,0.1813,3732.6,3730.3,0.4524]
[1760689211824,0.6336,3732.5,3730.3,0.4524]
[1760689212019,0.494,3732.5,3730.5,2.68060581]
[1760689212235,0.0333,3732.4,3730.4,0.4524]
[1760689212425,0.7983,3732.3,3730.4,0.4524]
[1760689212634,0.7983,3732.3,3729.0,0.232]
[1760689212635,12.019484,3732.1,3729.0,0.232]
[1760689212839,0.149,3730.5,3729.0,0.232]
[1760689213061,3.103,3730.4,3729.0,0.232]
[1760689213261,3.103,3730.4,3728.7,0.4524]
[1760689213422,3.103,3730.4,3729.2,2.68147961]
[1760689213626,0.1479,3731.0,3729.3,0.46121549]
[1760689213858,1.38,3730.9,3729.3,0.4524]
[1760689214078,0.1468,3731.6,3730.2,2.68081688]
[1760689214249,2.013,3731.5,3730.1,0.232]
[1760689214450,2.013,3731.5,3730.7,2.68043432]
[1760689214634,2.013,3731.5,3730.1,0.232]
[1760689214635,3.099,3731.4,3730.1,0.232]
[1760689214841,0.6356,3732.7,3730.1,0.232]
[1760689214842,0.002,3732.7,3730.5,2.68059056]
[1760689215041,0.002,3732.7,3730.1,0.232]
[1760689215042,1.1427,3732.6,3730.2,0.4524]
[1760689215242,1.1427,3732.6,3730.5,2.68060305]
[1760689215477,0.6336,3732.3,3730.0,2.68089879]
[1760689215791,0.0277,3732.2,3729.2,2.68154027]